Cogmind - Beta 17 @@@ ROGUE MODE // 2026.07.14 @ 14:55:42 // Winter2019/RPGLIKE Player: Gallgagger Result: Self-destructed Performance ------------- Evolutions (0) 0 Regions Visited (4) 800 Robots Destroyed (3) 15 Value Destroyed (30) 30 Prototype IDs (0) 0 Alien Tech Used (0) 0 Bonus (300) 300 TOTAL SCORE: 1145 Bonus ------- Aligned with FarCom 300 Cogmind --------- Core Integrity 421/600 Matter 139/300 Energy 100/100 System Corruption 2% Temperature Cool (0) Movement Flying (37) Location -9/Mines Parts ------- > --- POWER (1) -------- (None) > --- PROPULSION (3) --- Flight Unit Flight Unit > --- UTILITY (1) ------ (None) > --- WEAPON (1) ------- Beam Rifle > --- INVENTORY (0) ---- (None) Peak State ------------ > --- POWER ------------ (None) > --- PROPULSION ------- Flight Unit Flight Unit > --- UTILITY ---------- (None) > --- WEAPON ----------- Beam Rifle > --- INVENTORY -------- (None) [Rating: 4] Favorites ----------- Power None Propulsion Flight Unit Flight Unit Flight Unit Utility None Weapon Beam Rifle Energy Gun Beam Rifle Build | -11 -10 -10 -10 -9 ------- Run | Yrd Mat Min Exi Min Slots Evolved 2 | . 2 . . . Power . | . . . . . Propulsion 2 | . 2 . . . Utility . | . . . . . Weapon . | . . . . . Parts Attached 3 | . 3 . . . Power . | . . . . . Engine . | . . . . . Core . | . . . . . Reactor . | . . . . . Propulsion 2 | . 2 . . . Treads . | . . . . . Leg . | . . . . . Wheel . | . . . . . Hover . | . . . . . Flight 2 | . 2 . . . Utility . | . . . . . Device . | . . . . . Storage . | . . . . . Processor . | . . . . . Hackware . | . . . . . Protection . | . . . . . Artifact . | . . . . . Weapon 1 | . 1 . . . Energy Gun 1 | . 1 . . . Energy Cannon . | . . . . . Ballistic Gun . | . . . . . Ballistic Cannon . | . . . . . Launcher . | . . . . . Special Weapon . | . . . . . Impact Weapon . | . . . . . Slashing Weapon . | . . . . . Piercing Weapon . | . . . . . Special Melee Weapon . | . . . . . Unidentified Prototypes . | . . . . . Parts Lost . | . . . . . Power . | . . . . . Propulsion . | . . . . . Utility . | . . . . . Weapon . | . . . . . Highest Loss Streak . | . . . . . To Critical Strikes . | . . . . . Average Backups . | . . . . . Power . | . . . . . Propulsion . | . . . . . Utility . | . . . . . Weapon . | . . . . . Tool/Special . | . . . . . Unused Backups . | . . . . . Power . | . . . . . Propulsion . | . . . . . Utility . | . . . . . Weapon . | . . . . . Tool/Special . | . . . . . Average Slot Usage (%) 44 | . 38 50 50 . Flight 28 | . 23 33 33 . Energy Gun 15 | . 14 16 16 . Peak Build Rating 4 | . 4 4 4 . Average Rating 3 | . 3 4 4 . On Entrance 2 | . . 4 4 4 Avg Prop Armor Cover (%) . | . . . . . Naked Turns 8 | . 8 . . . Heaviest Build 3 | . 3 3 3 . Greatest Support 8 | 3 8 8 8 . Greatest Overweight (x) . | . . . . . Average Overweight (x) . | . . . . . Largest Inventory Capacity . | . . . . . Average Capacity . | . . . . . Most Carried . | . . . . . Average Carried . | . . . . . Final Capacity . | . . . . . Final Carried . | . . . . . Class Distribution -------------------- 100% | Mutant Dominant Class ---------------- Mutant | -10/Materials Mutant | -10/Mines Mutant | -10/Exiles Mutant | -9/Mines Resources | -11 -10 -10 -10 -9 ----------- Run | Yrd Mat Min Exi Min Matter Collected 64 | 39 25 . . . Remotely . | . . . . . Salvage Created 51 | . 51 . . . Parts 5 | . 5 . . . Haulers Intercepted . | . . . . . Recyclers Shooed . | . . . . . Parts Field Recycled . | . . . . . Retrieved Matter . | . . . . . Parts Self-Destructed . | . . . . . Prevented . | . . . . . Parts Restored . | . . . . . Kills | -11 -10 -10 -10 -9 ------- Run | Yrd Mat Min Exi Min Combat Hostiles Destroyed 3 | . 3 . . . Guns 3 | . 3 . . . Classes Destroyed 1 | . 1 . . . Swarmer 3 | . 3 . . . Best Kill Streak 3 | . 3 . . . Combat Bots Only 3 | . 3 . . . Max Kills in Single Turn 1 | . 1 . . . Gunslinging . | . . . . . Exploded . | . . . . . Melee . | . . . . . Uniques/NPCs Destroyed . | . . . . . Combat | -11 -10 -10 -10 -9 -------- Run | Yrd Mat Min Exi Min Hostile Shots Fired 34 | . 34 . . . Missed 14 | . 14 . . . Hits 20 | . 20 . . . Projectile 20 | . 20 . . . Damage Taken 199 | 4 171 . 24 . Core 179 | 4 151 . 24 . Absorbed by Shields . | . . . . . Redirected to Core 59 | . 59 . . . Core Remaining (%) 99 | 99 . . . . Volleys Fired 7 | . 7 . . . Largest 1 | . 1 . . . Hottest 56 | . 56 . . . Shots Fired 7 | . 7 . . . Gun 7 | . 7 . . . Cannon . | . . . . . Launcher . | . . . . . Special . | . . . . . Kinetic . | . . . . . Thermal 7 | . 7 . . . Explosive . | . . . . . Electromagnetic . | . . . . . Robot Hit Streak 5 | . 5 . . . Robot Miss Streak 1 | . 1 . . . Penetration Max . | . . . . . Secondary Targets . | . . . . . Shots Hit Robots 5 | . 5 . . . Core Hits 3 | . 3 . . . Critical Kills . | . . . . . Critical Parts Destroyed . | . . . . . Critical Strikes 1 | . 1 . . . Burn 1 | . 1 . . . Melee Attacks . | . . . . . Impact . | . . . . . Slashing . | . . . . . Piercing . | . . . . . Sneak Attacks . | . . . . . Combat Hostiles . | . . . . . Follow-up Attacks . | . . . . . Damage Inflicted 106 | 9 73 . 24 . Guns 73 | . 73 . . . Cannons . | . . . . . Explosions . | . . . . . Melee . | . . . . . Ramming 33 | 9 . . 24 . Kinetic . | . . . . . Thermal 73 | . 73 . . . Explosive . | . . . . . Electromagnetic . | . . . . . Impact . | . . . . . Slashing . | . . . . . Piercing . | . . . . . Highest Corruption 2 | . . . 2 . Average Corruption 2 | . . . 2 . Corruption Purged . | . . . . . Corruption Blocked . | . . . . . Overload Shots . | . . . . . Overflow Damage . | . . . . . Projectiles . | . . . . . Explosions . | . . . . . Melee . | . . . . . Knockbacks . | . . . . . Impact . | . . . . . Kinetic . | . . . . . Secondary . | . . . . . Self-Inflicted Damage 28 | 4 . . 24 . Shots . | . . . . . Rammed 1 | 1 . . . . Targets Rammed 1 | 1 . . . . Kicked . | . . . . . Crushed . | . . . . . Highest Temperature 42 | . 42 . . . Average Temperature 22 | . 22 . . . Received Heat Transfer 36 | . 36 . . . Siege Activations . | . . . . . Martial Activations . | . . . . . Shielding Activations . | . . . . . Robots Disrupted . | . . . . . Combat Hostiles . | . . . . . Robots Corrupted . | . . . . . Combat Hostiles . | . . . . . Parts Fried . | . . . . . Impact Corruptions . | . . . . . Robots Melted . | . . . . . Combat Hostiles . | . . . . . Parts Melted 1 | . 1 . . . Heat Transferred 259 | . 259 . . . Parts Sabotaged . | . . . . . Parts Stolen . | . . . . . Parts Stripped . | . . . . . Power Chain Reactions . | . . . . . Alert | -11 -10 -10 -10 -9 ------- Run | Yrd Mat Min Exi Min Maximum Alert Level . | . . . . . Low Security (%) 100 | 100 100 100 . . Level 1 . | . . . . . Level 2 . | . . . . . Level 3 . | . . . . . Level 4 . | . . . . . Level 5 . | . . . . . High Security . | . . . . . Max Security . | . . . . . Peak Influence 80 | . 80 27 . . Initial 27 | . . 27 . . Average 35 | . 44 19 . . Influence Increases 130 | . 130 . . . Destroy 0b10 Robot/C 60 | . 60 . . . Destroy Leader 10 | . 10 . . . Lose Combat Pursuer 60 | . 60 . . . Influence Decreases 130 | . 60 63 7 . Entered New Map 50 | . . 43 7 . Time Decay 80 | . 60 20 . . Squads Dispatched 3 | . 3 . . . Investigation 1 | . 1 . . . Extermination . | . . . . . Reinforcement 2 | . 2 . . . Assault . | . . . . . Garrison . | . . . . . Intercept . | . . . . . Searches Triggered . | . . . . . Construction Impeded . | . . . . . Haulers Reinforced . | . . . . . Active Scanning Responses . | . . . . . Cargo Convoy Interrupts . | . . . . . Stealth | -11 -10 -10 -10 -9 --------- Run | Yrd Mat Min Exi Min Distress Signals . | . . . . . Communications Jammed . | . . . . . Distress Signals . | . . . . . Times Spotted 13 | . 13 . . . Peak Tracking Total 9 | . 5 . 9 . Tactical Retreats 2 | . 2 . . . Traps | -11 -10 -10 -10 -9 ------- Run | Yrd Mat Min Exi Min Traps Triggered 1 | . 1 . . . Indirectly . | . . . . . Trap Hack Attempts . | . . . . . Triggered . | . . . . . Disarmed . | . . . . . Reprogrammed . | . . . . . Reused . | . . . . . Traps Extracted . | . . . . . Installed . | . . . . . Triggered . | . . . . . Machines | -11 -10 -10 -10 -9 ---------- Run | Yrd Mat Min Exi Min Machines Disabled 1 | . . . 1 . Max in Single Turn 1 | . . . 1 . Machines Repaired . | . . . . . Machines Dismantled . | . . . . . Machines Sabotaged . | . . . . . Overloaded Fab Kills . | . . . . . Hacking | -11 -10 -10 -10 -9 --------- Run | Yrd Mat Min Exi Min Machines Accessed 1 | . 1 . . . Terminals 1 | . 1 . . . Fabricators . | . . . . . Repair Stations . | . . . . . Recycling Units . | . . . . . Scanalyzers . | . . . . . Garrison Access . | . . . . . Total Hacks 2 | . 2 . . . Successful . | . . . . . Failed 2 | . 2 . . . Catastrophic 2 | . 2 . . . Database Lockouts . | . . . . . Manual 3 | . 2 . 1 . Terminals 2 | . 2 . . . Fabricators . | . . . . . Repair Stations . | . . . . . Recycling Units . | . . . . . Scanalyzers . | . . . . . Garrison Access . | . . . . . Terminal Hacks . | . . . . . Fabricator Hacks . | . . . . . Repair Station Hacks . | . . . . . Recycling Unit Hacks . | . . . . . Scanalyzer . | . . . . . Garrison Access Hacks . | . . . . . Unauthorized Hacks . | . . . . . Terminals . | . . . . . Fabricators . | . . . . . Repair Stations . | . . . . . Recycling Units . | . . . . . Scanalyzers . | . . . . . Garrison Access . | . . . . . Data Cores Recovered . | . . . . . Used . | . . . . . Hacking Detections 1 | . 1 . . . Full Trace Events 1 | . 1 . . . Feedback Events . | . . . . . Feedback Blocked . | . . . . . Robot Schematics Acquired . | . . . . . Robots Built . | . . . . . Authchips . | . . . . . Time . | . . . . . Total Robot Build Rating . | . . . . . Part Schematics Acquired . | . . . . . Parts Built . | . . . . . Authchips . | . . . . . Time . | . . . . . Total Part Build Rating . | . . . . . Part Studies Acquired . | . . . . . Parts Repaired . | . . . . . Time . | . . . . . Parts Recycled . | . . . . . Recycled Matter . | . . . . . Retrieved Matter . | . . . . . Retrieved Components . | . . . . . Parts Scanalyzed . | . . . . . Part Schematics Acquired . | . . . . . Parts Damaged . | . . . . . Bothacking | -11 -10 -10 -10 -9 ------------ Run | Yrd Mat Min Exi Min Used RIF Installer . | . . . . . Robots Hacked . | . . . . . Non-combat . | . . . . . Combat . | . . . . . Robot Hacks Applied . | . . . . . Relay Couplers Released . | . . . . . Fabnet Peak Effective % . | . . . . . Robots Rewired . | . . . . . Allies Hacked . | . . . . . Hacks Repelled . | . . . . . Allies | -11 -10 -10 -10 -9 -------- Run | Yrd Mat Min Exi Min Total Allies . | . . . . . Largest Group . | . . . . . Highest-Rated Group . | . . . . . Highest-Rated Ally . | . . . . . Total Orders . | . . . . . Ally Attacks . | . . . . . Total Damage . | . . . . . Kills . | . . . . . Allies Corrupted . | . . . . . Allies Melted . | . . . . . Intel | -11 -10 -10 -10 -9 ------- Run | Yrd Mat Min Exi Min Active Infowar (turns) . | . . . . . Robot Analysis Total . | . . . . . Derelict Logs Recovered . | . . . . . Drone Launches . | . . . . . Drone Recoveries . | . . . . . Exploration | -11 -10 -10 -10 -9 ------------- Run | Yrd Mat Min Exi Min Turns Passed 267 | 11 128 46 82 . Spaces Moved 643 | 20 281 124 218 . Core 37 | 20 17 . . . Treads . | . . . . . Legs . | . . . . . Wheels . | . . . . . Hover . | . . . . . Flight 606 | . 264 124 218 . Fastest Speed 37 | 50 37 37 37 . Average Speed 37 | 50 37 37 37 . Slowest Speed 50 | 50 50 37 37 . Overloaded Moves . | . . . . . Propulsion Burnouts . | . . . . . Robots Hopped 2 | . 2 . . . Potential Cave-ins . | . . . . . Cave-ins Triggered . | . . . . . Exploration Rate (%) 28 | 3 49 20 61 7 Regions Visited 4 Branch Regions 3 Pre-discovered Areas . | . . . . . Known Exits Taken . | . . . . . Unknown Exits Taken 4 | 1 1 1 1 . Scrap Searched . | . . . . . Spaces Dug . | . . . . . Terrain Destroyed . | . . . . . Melee . | . . . . . Projectile . | . . . . . AOE . | . . . . . Terrain Rammed 1 | . . . 1 . Walls Destroyed . | . . . . . Machines Disabled 1 | . . . 1 . Actions | -11 -10 -10 -10 -9 --------- Run | Yrd Mat Min Exi Min Total 652 | 20 291 123 218 . Wait 3 | . 3 . . . Move 635 | 19 276 123 217 . Hop 2 | . 2 . . . Pick Up . | . . . . . Fast Attach 3 | . 3 . . . Attach . | . . . . . Detach . | . . . . . Swap . | . . . . . Drop . | . . . . . Fire 7 | . 7 . . . Melee . | . . . . . Ram 2 | 1 . . 1 . Kick . | . . . . . Crush . | . . . . . Escape Stasis . | . . . . . Rewire . | . . . . . Trap . | . . . . . Miscellaneous . | . . . . . Route ------- -11/Scrapyard -10/Materials (discovered 3 exits: [*Mat x2] / [*Min]) -10/Mines (discovered 2 exits: [*Mat] / *Exi) -10/Exiles -9/Mines History --------- Turn | Location | Event 3 | -11/Scrapyard | Discovered new exit (range 15) 12 | -11/Scrapyard | Entered Materials 39 | -10/Materials | Upgraded with Propulsion slot (x2) 53 | -10/Materials | Discovered new exit (range 16) 127 | -10/Materials | Discovered new exit (range 16) 137 | -10/Materials | Discovered new exit (range 8) 140 | -10/Materials | Entered Mines 166 | -10/Mines | Met a Derelict bent on vengeance 167 | -10/Mines | Discovered new exit (range 5) 184 | -10/Mines | Deemed a non-threat by the Exiles lab entrance 184 | -10/Mines | Discovered new exit (range 5) 186 | -10/Mines | Entered Exiles 196 | -10/Exiles | Met 8R-AWN 202 | -10/Exiles | Met EX-HEX 212 | -10/Exiles | Met EX-BIN 216 | -10/Exiles | Aligned with FarCom system 217 | -10/Exiles | Given EX-Vault access code 225 | -10/Exiles | Opened EX-Vault 231 | -10/Exiles | Warned to stay clear of 0b10 Research branches 244 | -10/Exiles | Met EX-DEC 255 | -10/Exiles | Attacked by the Exiles 264 | -10/Exiles | Discovered new exit (range 10) 268 | -10/Exiles | Entered Mines 268 | -9/Mines | Self-destructed Last Messages --------------- to take all of those and it just counts as your one! 00225_ Connecting with EX-Vault Access... 00225_ Current location identified: Exiles EX-BIN: Oh yeah, I'd suggest you stay away from the 0b10 Research branches, since the FarCom signals could be picked up there, but you're welcome to try if you really want to. And if we have to leave here due to unforeseen circumstances, don't worry the FarCom system will continue to maintain contact via our distributed network. EX-DEC: Ah I see we have a visitor. One wrong move in here and I'll invert your atomic chain! 00246_ EX-DEC: "Oops, I hope HEX didn't hear that..." 00254_ Slammed into Machine. 00254_ Machine disabled. 00254_ Destabilizing: System corrupted (+1). 00255_ EXILES: Hostile robot within lab perimeter. Defensive protocols time, folks! 00264_ EXIT=FOUND LOCATION=UNKNOWN GOAL=ESCAPE Map ----- +----------------------------------------------------+ | | | | | | | | | | | | | | | | | | | | | | | | | ???????????????????????????????????????? | | ????????????###????????????????????????? | | ???????????? ????????????????????????? | | ???????????? ????????????????????????? | | ????????????# ????????????????????????? | | ????????????# #???????????????????????? | | ????????##### ##?????????????????????? | | ???????## ##????????????????????? | | ???????# ##???????????????????? | | ????????# ##??????????????????? | | ?????????# #??????????????????? | | ??????????# #??????????????????? | | ??????????# ##?????????????????? | | ??????????# @ #?????????????????? | | ??????????## #????????????????? | | ???????????# #????????????????? | | ???????????# #????????????????? | | ??????????# #????????????????? | | ??????????# ##????????????????? | | ??????????# ##?????????????????? | | ?????????? ## ##??????????????????? | | ?????????# #??# #???????????????????? | | ?????????## #???? #???????????????????? | | ??????????###????? ???????????????????? | | ??????????????????##???????????????????? | | ???????????????????????????????????????? | | ???????????????????????????????????????? | | ???????????????????????????????????????? | | ???????????????????????????????????????? | | ???????????????????????????????????????? | | ???????????????????????????????????????? | | ???????????????????????????????????????? | | ???????????????????????????????????????? | | ???????????????????????????????????????? | | ???????????????????????????????????????? | | ???????????????????????????????????????? | | ???????????????????????????????????????? | | ???????????????????????????????????????? | +----------------------------------------------------+ Best States ------------- Heat Dissipation 25 Energy Generation 5 Energy Capacity 100 Matter Stores 159 Matter Capacity 300 Sight Range 16 Terrain Scan Density 10 Evasion (%) 62 Item Schematics ----------------- None Robot Schematics ------------------ None Fabricated ------------ Nothing Repaired ---------- Nothing Studied --------- None Alien Tech Used ----------------- None Achievements -------------- None Challenges ------------ None RPGLIKE | -11 -10 -10 -10 -9 --------- Run | Yrd Mat Min Exi Min Levels Raised . | . . . . . XP Earned 4200 | 3000 350 500 350 . XP Spent 1300 | . 1300 . . . Upgrades 2 | . 2 . . . Propulsion Slot 2 | . 2 . . . Protomatter Created 8 | . 8 . . . Protomatter Decayed 8 | . 8 . . . Game ------ Seed BlastPersonalLattice Manual? 0 Play Time 00:01:51 Cumulative 661.7 hours Start 2026.07.14 @ 14:53:53 End 2026.07.14 @ 14:55:42 Sessions 1 Manual Loads 0 Difficulty Rogue Special Mode Winter2019/RPGLIKE Game No. 284 Rogue 130 Adventurer 154 Explorer 0 Win Type - Total 22 Types 4/5/4/3/2/1/0/1/1/1 Lore% 95 Gallery% 88 Achievement% 68 Wizard Run 0 Options --------- Layout 0 ASCII 0 Keyboard 0 Movement Numpad Keybinds 0 Fullscreen 2 Font 18/SmallcapsGlow Map View 76x50 Zoom Use 0% Tactical HUD 1 Map Filters NONE Filters NONE Steam 1 RUN: b560e665-fafe-4420-8f4b-63ea29d01919